fUSD/lending_fUSD_20240210
["ID","MTS","AMOUNT","RATE_DAILY","PERIOD"]
[313655717,1707544252914,-1126.02,0.00024657,2]
[313655718,1707544252924,-506.54982654,0.00024657,2]
[313655719,1707544252934,-1208.77,0.00024657,2]
[313655720,1707544252943,-1787.47,0.00024657,2]
[313655721,1707544252953,-522.00047501,0.00024657,2]
[313655722,1707544252962,-779.69,0.00024657,2]
[313655723,1707544252971,-500.0,0.00024657,2]
[313655724,1707544252981,-500.0,0.00024657,2]
[313655725,1707544252990,-500.0,0.00024657,2]
[313655726,1707544253000,-1474.04,0.00024657,2]
[313655727,1707544253009,-500.0,0.00024657,2]
[313655728,1707544253018,-500.0,0.00024657,2]
[313655729,1707544253028,-500.0,0.00024657,2]
[313655730,1707544253038,-3928.11,0.00024657,2]
[313655731,1707544253047,-500.0,0.00024657,2]
[313655732,1707544253058,-239.03925375,0.00024657,2]
[313655733,1707544253067,-623.89,0.00024657,2]
[313655734,1707544253077,-500.0,0.00024657,2]
[313655735,1707544253086,-500.0,0.00024657,2]
[313655736,1707544253096,-266.04408755,0.00024657,2]
[313655737,1707544253106,-500.0,0.00024657,2]
[313655738,1707544253117,-4619.9,0.00024657,2]
[313655739,1707544253126,-549.77,0.00024657,2]
[313655740,1707544253135,-857.71,0.00024657,2]
[313655741,1707544253145,-2682.63,0.00024657,2]
[313655742,1707544253155,-1176.96,0.00024657,2]
[313655743,1707544253164,-500.0,0.00024657,2]
[313655744,1707544253174,-500.0,0.00024657,2]
[313655745,1707544253184,-512.06135629,0.00024657,2]
[313655746,1707544253194,-904.9,0.00024657,2]
[313655747,1707544253203,-500.0,0.00024657,2]
[313655748,1707544253212,-583.9,0.00024657,2]
[313655749,1707544253223,-3042.89,0.00024657,2]
[313655750,1707544253232,-500.0,0.00024657,2]
[313655751,1707544253242,-3291.37,0.00024657,2]
[313655752,1707544253252,-500.0,0.00024657,2]
[313655753,1707544253262,-806.97,0.00024657,2]
[313655754,1707544253272,-500.0,0.00024657,2]
[313655755,1707544253281,-500.0,0.00024657,2]
[313655756,1707544253294,-500.0,0.00024657,2]
[313655757,1707544253303,-500.0,0.00024657,2]
[313655758,1707544253313,-500.0,0.00024657,2]
[313655759,1707544253323,-955.64,0.00024657,2]
[313655760,1707544253333,-256.78558013,0.00024657,2]
[313655761,1707544253342,-500.0,0.00024657,2]
[313655762,1707544253351,-8164.32,0.00024657,2]
[313655763,1707544253363,-500.0,0.00024657,2]
[313655764,1707544253372,-512.98,0.00024657,2]
[313655765,1707544253382,-500.0,0.00024657,2]
[313655766,1707544253391,-1521.59,0.00024657,2]
[313655767,1707544253402,-697.25,0.00024657,2]
[313655768,1707544253411,-318.99845171,0.00024657,2]
[313655769,1707544253420,-500.0,0.00024657,2]
[313655770,1707544253430,-675.42,0.00024657,2]
[313655771,1707544253439,-500.0,0.00024657,2]
[313655772,1707544253449,-500.0,0.00024657,2]
[313655773,1707544253458,-500.0,0.00024657,2]
[313655774,1707544253468,-500.0,0.00024657,2]
[313655775,1707544253477,-1079.74,0.00024657,2]
[313655776,1707544253485,-500.0,0.00024657,2]
[313655777,1707544253494,-944.2,0.00024657,2]
[313655778,1707544253503,-150.0,0.00024657,2]
[313655779,1707544253512,-5901.87,0.00024657,2]
[313655780,1707544253522,-964.5,0.00024657,2]
[313655781,1707544253531,-500.0,0.00024657,2]
[313655782,1707544253540,-820.78,0.00024657,2]
[313655783,1707544253550,-2473.3,0.00024657,2]
[313655784,1707544253559,-679.62,0.00024657,2]
[313655785,1707544253569,-500.0,0.00024657,2]
[313655786,1707544253578,-3035.8,0.00024657,2]
[313655787,1707544253587,-500.0,0.00024657,2]
[313655788,1707544253596,-1067.09,0.00024657,2]
[313655789,1707544253605,-500.0,0.00024657,2]
[313655790,1707544253614,-500.0,0.00024657,2]
[313655791,1707544253623,-739.06,0.00024657,2]
[313655792,1707544253632,-500.0,0.00024657,2]
[313655793,1707544253642,-3836.38,0.00024657,2]
[313655794,1707544253651,-500.0,0.00024657,2]
[313655795,1707544253660,-1842.92,0.00024657,2]
[313655796,1707544253670,-500.0,0.00024657,2]
[313655797,1707544253679,-500.0,0.00024657,2]
[313655798,1707544253688,-1818.74,0.00024657,2]
[313655799,1707544253697,-1930.43,0.00024657,2]
[313655800,1707544253707,-500.0,0.00024657,2]
[313655801,1707544253716,-10773.23,0.00024657,2]
[313655802,1707544253725,-1156.27,0.00024657,2]
[313655803,1707544253735,-2475.16,0.00024657,2]
[313655804,1707544253744,-3160.26,0.00024657,2]
[313655805,1707544253753,-500.0,0.00024657,2]
[313655806,1707544253762,-500.0,0.00024657,2]
[313655807,1707544253772,-500.0,0.00024657,2]
[313655808,1707544253781,-500.0,0.00024657,2]
[313655809,1707544253790,-602.26699594,0.00024657,2]
[313655810,1707544253800,-500.0,0.00024657,2]
[313655811,1707544253809,-983.08,0.00024657,2]
[313655812,1707544253819,-500.0,0.00024657,2]
[313655813,1707544253828,-1020.72,0.00024657,2]
[313655814,1707544253837,-500.0,0.00024657,2]
[313655815,1707544253846,-500.0,0.00024657,2]
[313655816,1707544253855,-1050.03,0.00024657,2]
[313655817,1707544253865,-500.0,0.00024657,2]
[313655818,1707544253874,-500.0,0.00024657,2]
[313655819,1707544253884,-3079.82,0.00024657,2]
[313655820,1707544253893,-3678.76,0.00024657,2]
[313655821,1707544253902,-528.14,0.00024657,2]
[313655822,1707544253911,-500.0,0.00024657,2]
[313655823,1707544253921,-646.96,0.00024657,2]
[313655824,1707544253930,-500.0,0.00024657,2]
[313655825,1707544253939,-1575.54,0.00024657,2]
[313655826,1707544253948,-500.0,0.00024657,2]
[313655827,1707544253958,-500.0,0.00024657,2]
[313655828,1707544253967,-1236.7,0.00024657,2]
[313655829,1707544253976,-2687.95,0.00024657,2]
[313655830,1707544253986,-500.0,0.00024657,2]
[313655831,1707544253996,-500.0,0.00024657,2]
[313655832,1707544254005,-500.0,0.00024657,2]
[313655833,1707544254015,-829.76,0.00024657,2]
[313655834,1707544254025,-858.57,0.00024657,2]
[313655835,1707544254035,-500.0,0.00024657,2]
[313655836,1707544254044,-500.0,0.00024657,2]
[313655837,1707544254054,-548.43,0.00024657,2]
[313655838,1707544254063,-1134.33,0.00024657,2]
[313655839,1707544254072,-500.0,0.00024657,2]
[313655840,1707544254082,-500.0,0.00024657,2]
[313655841,1707544254091,-780.84,0.00024657,2]
[313655842,1707544254100,-1694.87,0.00024657,2]
[313655843,1707544254109,-500.0,0.00024657,2]
[313655844,1707544254118,-500.0,0.00024657,2]
[313655845,1707544254128,-500.0,0.00024657,2]
[313655846,1707544254137,-500.0,0.00024657,2]
[313655847,1707544254147,-514.90137385,0.00024657,2]
[313655848,1707544254156,-5592.28,0.00024657,2]
[313655849,1707544254165,-500.0,0.00024657,2]
[313655850,1707544254174,-3308.8,0.00024657,2]
[313655851,1707544254184,-500.0,0.00024657,2]
[313655852,1707544254193,-500.0,0.00024657,2]
[313655853,1707544254203,-500.0,0.00024657,2]
[313655854,1707544254212,-500.0,0.00024657,2]
[313655855,1707544254222,-841.34,0.00024657,2]
[313655856,1707544254232,-1002.98,0.00024657,2]
[313655857,1707544254242,-500.0,0.00024657,2]
[313655858,1707544254251,-993.79,0.00024657,2]
[313655859,1707544254261,-500.0,0.00024657,2]
[313655860,1707544254270,-556.85,0.00024657,2]
[313655861,1707544254279,-3793.59,0.00024657,2]
[313655862,1707544254289,-500.0,0.00024657,2]
[313655863,1707544254298,-1628.71,0.00024657,2]
[313655864,1707544254307,-500.0,0.00024657,2]
[313655865,1707544254316,-532.38,0.00024657,2]
[313655866,1707544254325,-500.0,0.00024657,2]
[313655867,1707544254334,-500.0,0.00024657,2]
[313655868,1707544254344,-611.14,0.00024657,2]
[313655869,1707544254353,-2000.0,0.00024657,2]
[313655870,1707544254364,-21142.71,0.00024657,2]
[313655871,1707544254373,-500.0,0.00024657,2]
[313655872,1707544254383,-500.0,0.00024657,2]
[313655873,1707544254392,-500.0,0.00024657,2]
[313655874,1707544254403,-500.0,0.00024657,2]
[313655875,1707544254414,-534.85,0.00024657,2]
[313655876,1707544254423,-2842.93,0.00024657,2]
[313655877,1707544254433,-500.0,0.00024657,2]
[313655878,1707544254444,-500.0,0.00024657,2]
[313655879,1707544254453,-500.0,0.00024657,2]
[313655880,1707544254462,-521.93911439,0.00024657,2]
[313655881,1707544254471,-500.0,0.00024657,2]
[313655882,1707544254480,-500.0,0.00024657,2]
[313655883,1707544254490,-604.05,0.00024657,2]
[313655884,1707544254499,-864.61,0.00024657,2]
[313655885,1707544254509,-500.0,0.00024657,2]
[313655886,1707544254518,-500.0,0.00024657,2]
[313655887,1707544254527,-2887.49,0.00024657,2]
[313655888,1707544254536,-500.0,0.00024657,2]
[313655889,1707544254546,-3213.78,0.00024657,2]
[313655890,1707544254555,-500.0,0.00024657,2]
[313655891,1707544254565,-500.0,0.00024657,2]
[313655892,1707544254575,-528.28296502,0.00024657,2]
[313655893,1707544254584,-500.0,0.00024657,2]
[313655894,1707544254594,-996.7,0.00024657,2]
[313655895,1707544254604,-500.0,0.00024657,2]
[313655896,1707544254613,-4233.42,0.00024657,2]
[313655897,1707544254622,-500.0,0.00024657,2]
[313655898,1707544254632,-496.4582655,0.00024657,2]
[313655899,1707544254642,-3924.71,0.00024657,2]
[313655900,1707544254652,-532.35569174,0.00024657,2]
[313655901,1707544254662,-500.0,0.00024657,2]
[313655902,1707544254672,-500.0,0.00024657,2]
[313655903,1707544254682,-500.0,0.00024657,2]
[313655904,1707544254692,-500.0,0.00024657,2]
[313655905,1707544254702,-500.0,0.00024657,2]
[313655906,1707544254711,-500.0,0.00024657,2]
[313655907,1707544254722,-184.51666573,0.00024657,2]
[313655908,1707544254732,-773.79,0.00024657,2]
[313655909,1707544254741,-2751.4,0.00024657,2]
[313655910,1707544254751,-3065.8,0.00024657,2]
[313655911,1707544254760,-905.39,0.00024657,2]
[313655912,1707544254770,-500.0,0.00024657,2]
[313655913,1707544254779,-1035.04,0.00024657,2]
[313655914,1707544254790,-521.36328858,0.00024657,2]
[313655915,1707544254799,-500.0,0.00024657,2]
[313655916,1707544254809,-723.87,0.00024657,2]
[313655917,1707544254819,-500.0,0.00024657,2]
[313655918,1707544254829,-500.0,0.00024657,2]
[313655919,1707544254840,-925.92,0.00024657,2]
[313655920,1707544254849,-2790.09,0.00024657,2]
[313655921,1707544254859,-378.45746639,0.00024657,2]
[313655922,1707544254868,-500.0,0.00024657,2]
[313655923,1707544254878,-500.0,0.00024657,2]
[313655924,1707544254887,-500.0,0.00024657,2]
[313655925,1707544254897,-500.0,0.00024657,2]
[313655926,1707544254906,-500.0,0.00024657,2]
[313655927,1707544254916,-15067.19,0.00024657,2]
[313655928,1707544254926,-1369.16,0.00024657,2]
[313655929,1707544254936,-500.0,0.00024657,2]
[313655930,1707544254946,-3204.4,0.00024657,2]
[313655931,1707544254956,-597.85491177,0.00024657,2]
[313655932,1707544254966,-770.08,0.00024657,2]
[313655933,1707544254975,-571.07693418,0.00024657,2]
[313655934,1707544254985,-518.30057114,0.00024657,2]
[313655935,1707544254994,-538.68853796,0.00024657,2]
[313655936,1707544255003,-500.0,0.00024657,2]
[313655937,1707544255013,-500.0,0.00024657,2]
[313655938,1707544255023,-500.0,0.00024657,2]
[313655939,1707544255032,-516.59307434,0.00024657,2]
[313655940,1707544255042,-250.0,0.00024658,2]
[313655941,1707544255052,-15835.6290574,0.00024678,2]
[313655942,1707544255062,-2181.85772249,0.00024731,2]
[313655943,1707544255072,-171.41527608,0.0002474,2]
[313655944,1707544255082,-171.41527608,0.00024831,2]
[313655945,1707544255092,-227.37960202,0.00024831,2]
[313655946,1707544255101,-1646.3482578,0.00024831,2]
[313655947,1707544255111,-630.44475455,0.00024831,2]
[313655948,1707544255120,-2228.23499449,0.00024831,2]
[313655949,1707544255130,-16482.74932663,0.00024831,2]
[313655950,1707544255139,-200.0,0.00024904,2]
[313655951,1707544255149,-2000.0,0.00024904,2]
[313655952,1707544255159,-200.0,0.00024904,2]
[313655953,1707544255169,-232.55656092,0.00024921,2]
[313655954,1707544255178,-326.35988792,0.00024929,2]
[313655955,1707544255188,-2179.36001209,0.00024929,2]
[313655956,1707544255197,-641.84696201,0.00024929,2]
[313655957,1707544255207,-4459.30680772,0.0002493,2]
[313655958,1707544255218,-300.0,0.0002493,2]
[313655959,1707544255228,-300.0,0.0002493,2]
[313655960,1707544255238,-300.0,0.0002493,2]
[313655961,1707544255248,-300.0,0.0002493,2]
[313655962,1707544255257,-300.0,0.0002493,2]
[313655963,1707544255267,-300.0,0.0002493,2]
[313655964,1707544255276,-300.0,0.0002493,2]
[313655965,1707544255285,-212.75158593,0.0002493,2]
[313655966,1707544255295,-500.0,0.00024931,2]
[313655967,1707544255305,-500.0,0.00024931,2]
[313655968,1707544255315,-526.81782397,0.00024931,2]
[313655969,1707544255324,-500.0,0.00024931,2]
[313655970,1707544255334,-500.0,0.00024931,2]
[313655971,1707544255344,-500.0,0.00024931,2]
[313655972,1707544255354,-500.0,0.00024931,2]
[313655973,1707544255366,-500.0,0.00024931,2]
[313655974,1707544255376,-500.0,0.00024931,2]
[313655975,1707544255385,-500.0,0.00024931,2]
[313655976,1707544255395,-500.0,0.00024931,2]
[313655977,1707544255406,-500.0,0.00024931,2]
[313655978,1707544255415,-500.0,0.00024931,2]
[313655979,1707544255424,-1000.0,0.00024931,2]
[313655980,1707544255434,-500.0,0.00024931,2]
[313655981,1707544255445,-254.63357877,0.00024931,2]
[313655982,1707544255454,-500.0,0.00024931,2]
[313655983,1707544255464,-500.0,0.00024931,2]
[313655984,1707544255473,-500.0,0.00024931,2]
[313655985,1707544255483,-455.16060946,0.00024931,2]
[313655986,1707544255493,-500.0,0.00024931,2]
[313655987,1707544255503,-500.0,0.00024931,2]
[313655988,1707544255513,-500.0,0.00024931,2]
[313655989,1707544255523,-500.0,0.00024931,2]
[313655990,1707544255533,-500.0,0.00024931,2]
[313655991,1707544255542,-500.0,0.00024931,2]
[313655992,1707544255551,-500.0,0.00024931,2]
[313655993,1707544255561,-500.0,0.00024931,2]
[313655994,1707544255571,-500.0,0.00024931,2]
[313655995,1707544255580,-500.0,0.00024931,2]
[313655996,1707544255590,-500.0,0.00024931,2]
[313655997,1707544255599,-510.93153391,0.00024931,2]
[313655998,1707544255609,-500.0,0.00024931,2]
[313655999,1707544255619,-500.0,0.00024931,2]
[313656000,1707544255628,-500.0,0.00024931,2]
[313656001,1707544255637,-510.20413967,0.00024931,2]
[313656002,1707544255646,-500.0,0.00024931,2]
[313656003,1707544255656,-500.0,0.00024931,2]
[313656004,1707544255665,-500.0,0.00024931,2]
[313656005,1707544255675,-500.0,0.00024931,2]
[313656006,1707544255684,-500.0,0.00024931,2]
[313656007,1707544255694,-500.0,0.00024931,2]
[313656008,1707544255703,-500.0,0.00024931,2]
[313656009,1707544255712,-643.27614339,0.00024931,2]
[313656010,1707544255721,-500.0,0.00024931,2]
[313656011,1707544255731,-500.0,0.00024931,2]
[313656012,1707544255740,-500.0,0.00024931,2]
[313656013,1707544255750,-500.0,0.00024931,2]
[313656014,1707544255760,-500.0,0.00024931,2]
[313656015,1707544255769,-500.0,0.00024931,2]
[313656016,1707544255779,-494.22861167,0.00024931,2]
[313656017,1707544255788,-500.0,0.00024931,2]
[313656018,1707544255798,-516.15066439,0.00024931,2]
[313656019,1707544255809,-512.8152342,0.00024931,2]
[313656020,1707544255818,-500.0,0.00024931,2]
[313656021,1707544255827,-369.59098339,0.00024931,2]
[313656022,1707544255837,-500.0,0.00024931,2]
[313656023,1707544255847,-209.00921066,0.00024931,2]
[313656024,1707544255857,-500.0,0.00024931,2]
[313656025,1707544255867,-500.0,0.00024931,2]
[313656026,1707544255877,-500.0,0.00024931,2]
[313656027,1707544255886,-500.0,0.00024931,2]
[313656028,1707544255895,-500.0,0.00024931,2]
[313656029,1707544255905,-500.0,0.00024931,2]
[313656030,1707544255914,-500.0,0.00024931,2]
[313656031,1707544255923,-500.0,0.00024931,2]
[313656032,1707544255933,-500.0,0.00024931,2]
[313656033,1707544255942,-500.0,0.00024931,2]
[313656034,1707544255952,-500.0,0.00024931,2]
[313656035,1707544255961,-500.0,0.00024931,2]
[313656036,1707544255970,-420.61955381,0.00024931,2]
[313656037,1707544255980,-500.0,0.00024931,2]
[313656038,1707544255989,-500.0,0.00024931,2]
[313656039,1707544255998,-500.0,0.00024931,2]
[313656040,1707544256008,-500.0,0.00024931,2]
[313656041,1707544256017,-500.0,0.00024931,2]
[313656042,1707544256027,-500.0,0.00024931,2]
[313656043,1707544256036,-500.0,0.00024931,2]
[313656044,1707544256046,-500.0,0.00024931,2]
[313656045,1707544256056,-575.8716719,0.00024931,2]
[313656046,1707544256065,-500.0,0.00024931,2]
[313656047,1707544256075,-500.0,0.00024931,2]
[313656048,1707544256085,-500.0,0.00024931,2]
[313656049,1707544256094,-536.54282352,0.00024931,2]
[313656050,1707544256104,-500.0,0.00024931,2]
[313656051,1707544256113,-500.0,0.00024931,2]
[313656052,1707544256123,-500.0,0.00024931,2]
[313656053,1707544256133,-500.0,0.00024931,2]
[313656054,1707544256143,-500.0,0.00024931,2]
[313656055,1707544256153,-500.0,0.00024931,2]
[313656056,1707544256163,-500.0,0.00024931,2]
[313656057,1707544256172,-500.0,0.00024931,2]
[313656058,1707544256182,-500.0,0.00024931,2]
[313656059,1707544256191,-500.0,0.00024931,2]
[313656060,1707544256201,-376.39827767,0.00024931,2]
[313656061,1707544256211,-500.0,0.00024931,2]
[313656062,1707544256221,-500.0,0.00024931,2]
[313656063,1707544256230,-500.0,0.00024931,2]
[313656064,1707544256239,-552.34215232,0.00024931,2]
[313656065,1707544256249,-500.0,0.00024931,2]
[313656066,1707544256259,-651.29,0.00024931,2]
[313656067,1707544256269,-500.0,0.00024931,2]
[313656068,1707544256279,-500.0,0.00024931,2]
[313656069,1707544256289,-500.0,0.00024931,2]
[313656070,1707544256298,-500.0,0.00024931,2]
[313656071,1707544256308,-500.0,0.00024931,2]
[313656072,1707544256318,-500.0,0.00024931,2]
[313656073,1707544256328,-500.0,0.00024931,2]
[313656074,1707544256337,-500.0,0.00024931,2]
[313656075,1707544256346,-500.0,0.00024931,2]
[313656076,1707544256357,-500.0,0.00024931,2]
[313656077,1707544256369,-500.0,0.00024931,2]
[313656078,1707544256378,-500.0,0.00024931,2]
[313656079,1707544256387,-500.0,0.00024931,2]
[313656080,1707544256397,-500.0,0.00024931,2]
[313656081,1707544256406,-724.43,0.00024931,2]
[313656082,1707544256415,-500.0,0.00024931,2]
[313656083,1707544256425,-500.0,0.00024931,2]
[313656084,1707544256435,-500.0,0.00024931,2]
[313656085,1707544256444,-500.0,0.00024931,2]
[313656086,1707544256454,-500.0,0.00024931,2]
[313656087,1707544256463,-500.0,0.00024931,2]
[313656088,1707544256473,-500.0,0.00024931,2]
[313656089,1707544256482,-500.0,0.00024931,2]
[313656090,1707544256492,-500.0,0.00024931,2]
[313656091,1707544256501,-500.0,0.00024931,2]
[313656092,1707544256511,-727.19,0.00024931,2]
[313656093,1707544256520,-500.0,0.00024931,2]
[313656094,1707544256531,-577.92,0.00024931,2]
[313656095,1707544256540,-500.0,0.00024931,2]
[313656096,1707544256550,-243.94454967,0.00024931,2]
[313656097,1707544256559,-500.0,0.00024931,2]
[313656098,1707544256569,-545.84240346,0.00024931,2]
[313656099,1707544256579,-500.0,0.00024931,2]
[313656100,1707544256588,-698.85,0.00024931,7]
[313656101,1707544256598,-500.0,0.00024931,2]
[313656102,1707544256607,-500.0,0.00024931,2]
[313656103,1707544256617,-500.0,0.00024931,2]
[313656104,1707544256627,-500.0,0.00024931,2]
[313656105,1707544256637,-500.0,0.00024931,2]
[313656106,1707544256646,-500.0,0.00024931,2]
[313656107,1707544256656,-500.0,0.00024931,2]
[313656108,1707544256666,-500.0,0.00024931,2]
[313656109,1707544256675,-500.0,0.00024931,2]
[313656110,1707544256686,-500.0,0.00024931,2]
[313656111,1707544256695,-500.0,0.00024931,2]
[313656112,1707544256705,-500.0,0.00024931,2]
[313656113,1707544256715,-500.0,0.00024931,2]
[313656114,1707544256724,-500.0,0.00024931,2]
[313656115,1707544256734,-500.0,0.00024931,2]
[313656116,1707544256744,-500.0,0.00024931,2]
[313656117,1707544256754,-157.68315193,0.00024931,2]
[313656118,1707544256764,-500.0,0.00024931,2]
[313656119,1707544256774,-500.0,0.00024931,2]
[313656120,1707544256966,-500.0,0.00024931,2]
[313656121,1707544256976,-3494.63,0.00024931,2]
[313656122,1707544256986,-531.4228665,0.00024931,2]
[313656123,1707544256996,-653.32,0.00024931,2]
[313656124,1707544257006,-500.0,0.00024931,2]
[313656125,1707544257015,-500.0,0.00024931,2]
[313656126,1707544257025,-500.0,0.00024931,2]
[313656127,1707544257034,-500.0,0.00024931,2]
[313656128,1707544257044,-500.0,0.00024931,2]
[313656129,1707544257053,-500.0,0.00024931,2]
[313656130,1707544257063,-255.16562423,0.00024931,2]
[313656131,1707544257073,-500.0,0.00024931,2]
[313656132,1707544257082,-500.0,0.00024931,2]
[313656133,1707544257092,-222.2115206,0.00024931,2]
[313656134,1707544257101,-500.0,0.00024931,2]
[313656135,1707544257111,-500.0,0.00024931,2]
[313656136,1707544257120,-500.0,0.00024931,2]
[313656137,1707544257130,-500.0,0.00024931,2]
[313656138,1707544257139,-500.0,0.00024931,2]
[313656139,1707544257149,-500.0,0.00024931,2]
[313656140,1707544257160,-500.0,0.00024931,2]
[313656141,1707544257170,-352.79896713,0.00024931,2]
[313656142,1707544257179,-500.0,0.00024931,2]
[313656143,1707544257188,-861.38,0.00024931,2]
[313656144,1707544257198,-596.59,0.00024931,2]
[313656145,1707544257208,-500.0,0.00024931,2]
[313656146,1707544257217,-500.0,0.00024931,2]
[313656147,1707544257227,-517.97354135,0.00024931,2]
[313656148,1707544257236,-500.0,0.00024931,2]
[313656149,1707544257246,-500.0,0.00024931,2]
[313656150,1707544257256,-500.0,0.00024931,2]
[313656151,1707544257265,-500.0,0.00024931,2]
[313656152,1707544257275,-500.0,0.00024931,2]
[313656153,1707544257284,-469.69746183,0.00024931,2]
[313656154,1707544257294,-500.0,0.00024931,2]
[313656155,1707544257304,-500.0,0.00024931,2]
[313656156,1707544257314,-500.0,0.00024931,2]
[313656157,1707544257324,-500.0,0.00024931,2]
[313656158,1707544257334,-500.0,0.00024931,2]
[313656159,1707544257343,-500.0,0.00024931,2]
[313656160,1707544257352,-500.0,0.00024931,2]
[313656161,1707544257363,-500.0,0.00024931,2]
[313656162,1707544257373,-500.0,0.00024931,2]
[313656163,1707544257382,-500.0,0.00024931,2]
[313656164,1707544257392,-500.0,0.00024931,2]
[313656165,1707544257401,-501.59,0.00024931,2]
[313656166,1707544257411,-536.46222674,0.00024931,2]
[313656167,1707544257421,-500.0,0.00024931,2]
[313656168,1707544257430,-500.0,0.00024931,2]
[313656169,1707544257440,-500.0,0.00024931,2]
[313656170,1707544257449,-500.0,0.00024931,2]
[313656171,1707544257458,-500.0,0.00024931,2]
[313656172,1707544257468,-500.0,0.00024931,2]
[313656173,1707544257477,-655.92,0.00024931,2]
[313656174,1707544257487,-500.0,0.00024931,2]
[313656175,1707544257496,-446.29178853,0.00024931,2]
[313656176,1707544257929,-158.50522974,0.00024176,2]
[313656177,1707544257939,-53.70821147,0.00024931,2]
[313656178,1707544257948,-388.74720487,0.00024931,2]
[313656185,1707544636472,237.0,0.00021461,2]
[313656186,1707544731814,-1066.04559895,0.00022798,2]
[313656187,1707544731837,-388.91549222,0.00022799,2]
[313656188,1707544731859,-216.59900075,0.00022799,2]
[313656189,1707544731885,-158.63757386,0.000228,2]
[313656190,1707544731907,-770.34561325,0.00022893,2]
[313656191,1707544731926,-15260.85786316,0.000229,2]
[313656192,1707544731947,-163.92950635,0.000229,2]
[313656193,1707544731969,-1000.0,0.00022912,2]
[313656194,1707544731989,-421.16139741,0.00022987,2]
[313656195,1707544732010,-158.63757379,0.00022995,2]
[313656196,1707544732031,-157.021,0.00022997,2]
[313656197,1707544732052,-157.021,0.00022997,2]
[313656198,1707544732073,-157.021,0.00022997,2]
[313656199,1707544732097,-157.021,0.00022997,2]
[313656200,1707544732117,-157.021,0.00022997,2]
[313656201,1707544732141,-157.021,0.00022997,2]
[313656202,1707544732163,-157.021,0.00022997,2]
[313656203,1707544732185,-157.021,0.00022997,2]
[313656204,1707544732208,-157.021,0.00022997,2]
[313656205,1707544732230,-157.021,0.00022997,2]
[313656206,1707544732250,-155.22198005,0.00022998,2]
[313656207,1707544732271,-1051.11709447,0.00022998,2]
[313656208,1707544732291,-272.23342423,0.00022998,2]
[313656209,1707544732312,-946.51759569,0.00022998,2]
[313656210,1707544732332,-374.87561085,0.00022998,2]
[313656211,1707544732353,-421.70401904,0.00022998,2]
[313656212,1707544732373,-209.69859176,0.00022998,2]
[313656213,1707544732394,-643.34988586,0.00022998,2]
[313656214,1707544732415,-461.60197095,0.00022998,2]
[313656215,1707544732436,-156.66391236,0.00022998,2]
[313656216,1707544732460,-2342.36684925,0.00022998,2]
[313656217,1707544732481,-697.75025382,0.00022998,2]
[313656218,1707544732505,-155.91824127,0.00022998,2]
[313656219,1707544732526,-2925.87598949,0.00022998,2]
[313656220,1707544732547,-155.80771745,0.00022998,2]
[313656221,1707544732566,-155.0,0.00022998,2]
[313656222,1707544732589,-572.41937648,0.00022998,2]